fUSD/lending_fUSD_20260624
["ID","MTS","AMOUNT","RATE_DAILY","PERIOD"]
[426294996,1782251449000,-455.45,0.00027,7]
[426294995,1782251449000,-500.0,0.00027,7]
[426294993,1782251449000,-500.0,0.00027,7]
[426294967,1782251449000,-444.05907409,0.00026677,2]
[426294984,1782251449000,-476.883676,0.00026939,2]
[426294970,1782251449000,-207.82224297,0.00026677,2]
[426294960,1782251449000,-210.37268652,0.00026677,2]
[426294977,1782251449000,-2991.49051684,0.00026707,2]
[426294954,1782251449000,-347.89017662,0.00026677,2]
[426294944,1782251449000,-391.72770676,0.0002667,2]
[426294953,1782251449000,-343.10828353,0.00026677,2]
[426294945,1782251449000,-357.093912,0.0002667,2]
[426294946,1782251449000,-337.00797599,0.0002667,2]
[426294947,1782251449000,-234.25279286,0.00026671,2]
[426294948,1782251449000,-209.24814807,0.00026671,2]
[426294952,1782251449000,-344.98324682,0.00026677,2]
[426294949,1782251449000,-399.99082253,0.00026671,2]
[426294950,1782251449000,-519.34504671,0.00026671,2]
[426294951,1782251449000,-323.74012132,0.00026677,2]
[426294964,1782251449000,-154.22317271,0.00026677,2]
[426294978,1782251449000,-97254.4093979,0.00026766,2]
[426294961,1782251449000,-221.81365674,0.00026677,2]
[426294962,1782251449000,-215.22020598,0.00026677,2]
[426294955,1782251449000,-320.97984094,0.00026677,2]
[426294966,1782251449000,-238.95227734,0.00026677,2]
[426294957,1782251449000,-398.65699789,0.00026677,2]
[426294963,1782251449000,-154.30057292,0.00026677,2]
[426294965,1782251449000,-671.00780521,0.00026677,2]
[426294958,1782251449000,-357.27918137,0.00026677,2]
[426294959,1782251449000,-357.90485263,0.00026677,2]
[426294956,1782251449000,-401.47359547,0.00026677,2]
[426294968,1782251449000,-321.01838902,0.00026677,2]
[426294976,1782251449000,-200.0,0.00026707,2]
[426294969,1782251449000,-573.69235185,0.00026677,2]
[426294994,1782251449000,-500.0,0.00027,7]
[426294997,1782251449000,-15239.35068509,0.00027111,2]
[426294987,1782251449000,-500.0,0.00027,7]
[426295003,1782251449000,-573.93725813,0.00027318,2]
[426295035,1782251449000,-500.0,0.00027318,2]
[426295034,1782251449000,-152.0,0.00027318,2]
[426295032,1782251449000,-151.0,0.00027318,2]
[426295028,1782251449000,-152.0,0.00027318,2]
[426295038,1782251449000,-152.0,0.00027318,2]
[426295040,1782251449000,-152.0,0.00027318,2]
[426295047,1782251449000,-152.0,0.00027318,2]
[426295042,1782251449000,-152.0,0.00027318,2]
[426295041,1782251449000,-500.0,0.00027318,2]
[426295048,1782251449000,-152.0,0.00027318,2]
[426295039,1782251449000,-500.0,0.00027318,2]
[426295044,1782251449000,-500.0,0.00027318,2]
[426295043,1782251449000,-500.0,0.00027318,2]
[426295045,1782251449000,-152.0,0.00027318,2]
[426295046,1782251449000,-500.0,0.00027318,2]
[426295055,1782251449000,-151.0,0.00027373,2]
[426295051,1782251449000,-152.0,0.00027318,2]
[426295049,1782251449000,-152.0,0.00027318,2]
[426295052,1782251449000,-15239.35068509,0.00027333,2]
[426295058,1782251449000,-500.0,0.00027397,2]
[426295053,1782251449000,-153.1738696,0.00027373,2]
[426295056,1782251449000,-150.0,0.00027397,2]
[426295060,1782251449000,-500.0,0.00027397,2]
[426295059,1782251449000,-500.0,0.00027397,2]
[426295054,1782251449000,-151.0,0.00027373,2]
[426294999,1782251449000,-2214.22,0.00027224,7]
[426295057,1782251449000,-500.0,0.00027397,2]
[426295031,1782251449000,-152.0,0.00027318,2]
[426295037,1782251449000,-500.0,0.00027318,2]
[426295050,1782251449000,-152.0,0.00027318,2]
[426295036,1782251449000,-152.0,0.00027318,2]
[426295033,1782251449000,-500.0,0.00027318,2]
[426295010,1782251449000,-151.0,0.00027318,2]
[426295005,1782251449000,-187.78006524,0.00027318,2]
[426295006,1782251449000,-157.72962379,0.00027318,2]
[426295012,1782251449000,-621.78829552,0.00027318,2]
[426295007,1782251449000,-153.1738696,0.00027318,2]
[426295013,1782251449000,-157.41989846,0.00027318,2]
[426295011,1782251449000,-8565.75555911,0.00027318,2]
[426295004,1782251449000,-155.64062986,0.00027318,2]
[426295008,1782251449000,-3402.18189174,0.00027318,2]
[426295014,1782251449000,-500.0,0.00027318,2]
[426295015,1782251449000,-500.0,0.00027318,2]
[426295019,1782251449000,-187.78006524,0.00027318,2]
[426295009,1782251449000,-174.61919141,0.00027318,2]
[426295017,1782251449000,-500.0,0.00027318,2]
[426295030,1782251449000,-500.0,0.00027318,2]
[426295027,1782251449000,-151.0,0.00027318,2]
[426295029,1782251449000,-500.0,0.00027318,2]
[426295026,1782251449000,-1157.22492116,0.00027318,2]
[426295021,1782251449000,-152.0,0.00027318,2]
[426295025,1782251449000,-735.71973368,0.00027318,2]
[426295020,1782251449000,-646.65982734,0.00027318,2]
[426295024,1782251449000,-187.78006524,0.00027318,2]
[426295023,1782251449000,-187.78006524,0.00027318,2]
[426295016,1782251449000,-578.20924308,0.00027318,2]
[426295022,1782251449000,-500.0,0.00027318,2]
[426295018,1782251449000,-187.78006524,0.00027318,2]
[426295105,1782251450000,-151.0,0.00027428,2]
[426295104,1782251450000,-151.0,0.00027428,2]
[426295101,1782251450000,-151.27539405,0.00027414,14]
[426295096,1782251450000,-1154.55,0.000274,2]
[426295088,1782251450000,-153.12432412,0.00027397,2]
[426295089,1782251450000,-306.24864824,0.00027397,2]
[426295093,1782251450000,-151.27539405,0.00027398,11]
[426295092,1782251450000,-150.0,0.00027398,2]
[426295090,1782251450000,-150.0,0.00027397,30]
[426295100,1782251450000,-151.27539405,0.00027402,12]
[426295097,1782251450000,-2152.43,0.000274,7]
[426295098,1782251450000,-1538.77,0.000274,7]
[426295107,1782251450000,-408.0,0.00027455,2]
[426295106,1782251450000,-151.27539405,0.00027437,15]
[426295099,1782251450000,-150.0,0.000274,7]
[426295108,1782251450000,-3562.0,0.00027461,2]
[426295118,1782251450000,-151.0,0.00027483,2]
[426295114,1782251450000,-151.27539405,0.00027476,16]
[426295111,1782251450000,-1229.0,0.00027461,2]
[426295115,1782251450000,-2000.0,0.00027481,7]
[426295117,1782251450000,-151.0,0.00027483,2]
[426295113,1782251450000,-935.0,0.00027461,2]
[426295110,1782251450000,-1277.0,0.00027461,2]
[426295109,1782251450000,-1361.0,0.00027461,2]
[426295091,1782251450000,-200.23207802,0.00027397,2]
[426295103,1782251450000,-153.1738696,0.00027428,2]
[426295085,1782251450000,-27849.67,0.00027397,10]
[426295073,1782251450000,-570.14631605,0.00027397,2]
[426295083,1782251450000,-300.0,0.00027397,2]
[426295116,1782251450000,-153.1738696,0.00027483,2]
[426295063,1782251450000,-500.0,0.00027397,2]
[426295070,1782251450000,-500.0,0.00027397,2]
[426295064,1782251450000,-500.0,0.00027397,2]
[426295061,1782251450000,-500.0,0.00027397,2]
[426295065,1782251450000,-500.0,0.00027397,2]
[426295062,1782251450000,-500.0,0.00027397,2]
[426295067,1782251450000,-500.0,0.00027397,2]
[426295071,1782251450000,-500.0,0.00027397,2]
[426295068,1782251450000,-500.0,0.00027397,2]
[426295069,1782251450000,-500.0,0.00027397,2]
[426295066,1782251450000,-500.0,0.00027397,2]
[426295094,1782251450000,-2077.78,0.000274,7]
[426295072,1782251450000,-528.14517642,0.00027397,120]
[426295078,1782251450000,-151.27539475,0.00027397,10]
[426295076,1782251450000,-1500.0,0.00027397,2]
[426295075,1782251450000,-3000.0,0.00027397,2]
[426295077,1782251450000,-814.18765773,0.00027397,2]
[426295080,1782251450000,-530.46,0.00027397,2]
[426295081,1782251450000,-1025.82,0.00027397,2]
[426295079,1782251450000,-207.31,0.00027397,31]
[426295082,1782251450000,-1475.2,0.00027397,2]
[426295084,1782251450000,-3095.42,0.00027397,2]
[426295095,1782251450000,-1000.0,0.000274,2]
[426295086,1782251450000,-23208.05,0.00027397,10]
[426295087,1782251450000,-19340.05,0.00027397,10]
[426295074,1782251450000,-160.0,0.00027397,2]
[426295112,1782251450000,-6083.0,0.00027461,2]
[426295102,1782251450000,-185.0,0.00027425,5]
[426295123,1782251450000,-498.1736845,0.00027506,2]
[426295147,1782251450000,-421.78980217,0.00027506,2]
[426295148,1782251450000,-584.20789939,0.00027506,2]
[426295146,1782251450000,-655.06790472,0.00027506,2]
[426295153,1782251450000,-587.59156014,0.00027517,2]
[426295144,1782251450000,-575.66861441,0.00027506,2]
[426295156,1782251450000,-468.50558572,0.00027518,2]
[426295159,1782251450000,-599.9862338,0.00027518,2]
[426295165,1782251450000,-521.83526493,0.00027525,2]
[426295158,1782251450000,-418.49629614,0.00027518,2]
[426295160,1782251450000,-346.23003114,0.00027518,2]
[426295157,1782251450000,-276.58142306,0.00027518,2]
[426295162,1782251450000,-485.61018199,0.00027525,2]
[426295150,1782251450000,-509.77861676,0.00027506,2]
[426295161,1782251450000,-459.37297235,0.00027525,2]
[426295164,1782251450000,-514.66242529,0.00027525,2]
[426295166,1782251450000,-481.46976141,0.00027525,2]
[426295169,1782251450000,-535.91877206,0.00027525,2]
[426295168,1782251450000,-597.98549683,0.00027525,2]
[426295167,1782251450000,-602.2103932,0.00027525,2]
[426295170,1782251450000,-536.85727894,0.00027525,2]
[426295176,1782251450000,-165.52322809,0.00027525,2]
[426295174,1782251450000,-234.07175158,0.00027525,2]
[426295175,1782251450000,-430.44041195,0.00027525,2]
[426295171,1782251450000,-420.74537305,0.00027525,2]
[426295173,1782251450000,-443.62731349,0.00027525,2]
[426295119,1782251450000,-1435.304348,0.000275,30]
[426295163,1782251450000,-517.47487022,0.00027525,2]
[426295151,1782251450000,-590.7508384,0.00027506,2]
[426295155,1782251450000,-505.51196398,0.00027517,2]
[426295149,1782251450000,-592.54889865,0.00027506,2]
[426295124,1782251450000,-469.48394716,0.00027506,2]
[426295152,1782251450000,-495.98597493,0.00027506,2]
[426295121,1782251450000,-500.0,0.000275,7]
[426295122,1782251450000,-476.883676,0.00027502,2]
[426295120,1782251450000,-164.0,0.000275,30]
[426295125,1782251450000,-305.16727419,0.00027506,2]
[426295127,1782251450000,-245.84896075,0.00027506,2]
[426295126,1782251450000,-466.71608918,0.00027506,2]
[426295129,1782251450000,-484.05514957,0.00027506,2]
[426295128,1782251450000,-496.25480215,0.00027506,2]
[426295142,1782251450000,-599.9986093,0.00027506,2]
[426295141,1782251450000,-491.31426575,0.00027506,2]
[426295131,1782251450000,-467.56834589,0.00027506,2]
[426295130,1782251450000,-463.50164213,0.00027506,2]
[426295139,1782251450000,-645.26895146,0.00027506,2]
[426295134,1782251450000,-611.53460487,0.00027506,2]
[426295132,1782251450000,-558.03654847,0.00027506,2]
[426295133,1782251450000,-462.6473522,0.00027506,2]
[426295172,1782251450000,-274.21558053,0.00027525,2]
[426295138,1782251450000,-617.50108081,0.00027506,2]
[426295136,1782251450000,-451.22092933,0.00027506,2]
[426295137,1782251450000,-400.46415604,0.00027506,2]
[426295140,1782251450000,-473.19451053,0.00027506,2]
[426295143,1782251450000,-305.27841125,0.00027506,2]
[426295135,1782251450000,-537.22027751,0.00027506,2]
[426295154,1782251450000,-535.640868,0.00027517,2]
[426295145,1782251450000,-577.54325094,0.00027506,2]
[426295215,1782251451000,-954.98,0.00027611,30]
[426295224,1782251451000,-954.98,0.00027672,7]
[426295207,1782251451000,-551.07975972,0.00027556,2]
[426295222,1782251451000,-500.0,0.0002767,2]
[426295218,1782251451000,-954.98,0.00027641,2]
[426295216,1782251451000,-151.27539405,0.00027612,18]
[426295213,1782251451000,-151.0,0.00027593,2]
[426295210,1782251451000,-3402.18189174,0.00027592,2]
[426295212,1782251451000,-151.0,0.00027593,2]
[426295205,1782251451000,-445.0,0.00027555,2]
[426295217,1782251451000,-953.76,0.00027641,2]
[426295226,1782251451000,-953.76,0.00027702,30]
[426295219,1782251451000,-153.1738696,0.00027648,2]
[426295234,1782251451000,-5731.08,0.00027711,7]
[426295221,1782251451000,-151.0,0.00027648,2]
[426295223,1782251451000,-953.76,0.00027672,7]
[426295225,1782251451000,-680762.42476019,0.00027672,2]
[426295231,1782251451000,-5732.07,0.00027711,7]
[426295229,1782251451000,-151.0,0.00027703,2]
[426295233,1782251451000,-5080.57,0.00027711,7]
[426295232,1782251451000,-4276.65,0.00027711,7]
[426295230,1782251451000,-151.0,0.00027703,2]
[426295227,1782251451000,-954.98,0.00027702,30]
[426295236,1782251451000,-5078.46,0.00027711,7]
[426295238,1782251451000,-953.76,0.00027733,2]
[426295237,1782251451000,-151.27539405,0.00027718,19]
[426295208,1782251451000,-953.76,0.0002758,7]
[426295220,1782251451000,-151.0,0.00027648,2]
[426295209,1782251451000,-954.98,0.0002758,7]
[426295185,1782251451000,-666.08861113,0.00027525,2]
[426295204,1782251451000,-5078.46,0.0002755,30]
[426295177,1782251451000,-308.60114585,0.00027525,2]
[426295179,1782251451000,-308.44634542,0.00027525,2]
[426295181,1782251451000,-1006.51170782,0.00027525,2]
[426295178,1782251451000,-241.28386249,0.00027525,2]
[426295180,1782251451000,-269.43331984,0.00027525,2]
[426295186,1782251451000,-481.52758352,0.00027525,2]
[426295183,1782251451000,-360.91299125,0.00027525,2]
[426295187,1782251451000,-860.53852777,0.00027525,2]
[426295189,1782251451000,-518.63573911,0.00027525,2]
[426295184,1782251451000,-477.90455468,0.00027525,2]
[426295182,1782251451000,-161.25019776,0.00027525,2]
[426295190,1782251451000,-920.84673108,0.00027525,2]
[426295188,1782251451000,-415.64448593,0.00027525,2]
[426295214,1782251451000,-953.76,0.00027611,30]
[426295202,1782251451000,-5731.08,0.0002755,30]
[426295191,1782251451000,-459.58392577,0.00027525,2]
[426295193,1782251451000,-153.1738696,0.00027538,2]
[426295195,1782251451000,-151.0,0.00027538,2]
[426295199,1782251451000,-4276.65,0.0002755,30]
[426295200,1782251451000,-5080.57,0.0002755,30]
[426295194,1782251451000,-151.0,0.00027538,2]
[426295197,1782251451000,-953.76,0.0002755,2]
[426295198,1782251451000,-5732.07,0.0002755,30]
[426295196,1782251451000,-285.941618,0.0002755,2]
[426295201,1782251451000,-954.98,0.0002755,2]
[426295203,1782251451000,-4277.6,0.0002755,30]
[426295206,1782251451000,-15239.35068509,0.00027556,2]
[426295211,1782251451000,-153.1738696,0.00027593,2]
[426295192,1782251451000,-151.27539405,0.00027533,17]
[426295235,1782251451000,-4277.6,0.00027711,7]
[426295228,1782251451000,-153.1738696,0.00027703,2]
[426295250,1782251451000,-200.0,0.00027803,2]
[426295271,1782251451000,-194.72792766,0.00027866,2]
[426295272,1782251451000,-151.0,0.00027866,2]
[426295270,1782251451000,-735.71973368,0.00027866,2]
[426295273,1782251451000,-153.1738696,0.00027868,2]
[426295275,1782251451000,-151.0,0.00027868,2]
[426295280,1782251451000,-4277.6,0.00027872,2]
[426295278,1782251451000,-5080.57,0.00027872,2]
[426295279,1782251451000,-5731.08,0.00027872,2]
[426295281,1782251451000,-5078.46,0.00027872,2]
[426295282,1782251451000,-953.76,0.00027885,30]
[426295285,1782251451000,-8965.79067308,0.000279,2]
[426295283,1782251451000,-954.98,0.00027885,30]
[426295290,1782251451000,-954.98,0.00027916,2]
[426295274,1782251451000,-151.0,0.00027868,2]
[426295286,1782251451000,-644.33,0.00027902,2]
[426295289,1782251451000,-953.76,0.00027916,2]
[426295288,1782251451000,-482.46,0.00027911,2]
[426295287,1782251451000,-151.0,0.00027905,2]
[426295291,1782251451000,-292.0,0.00027918,2]
[426295296,1782251451000,-750.0,0.00027923,7]
[426295293,1782251451000,-153.17386973,0.00027923,2]
[426295294,1782251451000,-151.0,0.00027923,2]
[426295292,1782251451000,-643.0,0.00027918,2]
[426295298,1782251451000,-814.18765773,0.00027945,2]
[426295297,1782251451000,-3000.0,0.00027945,2]
[426295300,1782251451000,-954.98,0.00027946,7]
[426295295,1782251451000,-151.0,0.00027923,2]
[426295244,1782251451000,-954.98,0.00027763,7]
[426295284,1782251451000,-2077.78,0.000279,7]
[426295269,1782251451000,-194.72792766,0.00027866,2]
[426295299,1782251451000,-953.76,0.00027946,7]
[426295267,1782251451000,-157.41989846,0.00027866,2]
[426295268,1782251451000,-209.05292702,0.00027866,2]
[426295242,1782251451000,-151.0,0.00027758,2]
[426295241,1782251451000,-151.0,0.00027758,2]
[426295243,1782251451000,-953.76,0.00027763,7]
[426295251,1782251451000,-153.1738696,0.00027813,2]
[426295239,1782251451000,-954.98,0.00027733,2]
[426295245,1782251451000,-495.325645,0.00027774,2]
[426295246,1782251451000,-15239.35068509,0.00027778,2]
[426295247,1782251451000,-953.76,0.00027794,30]
[426295248,1782251451000,-954.98,0.00027794,30]
[426295249,1782251451000,-2152.43,0.000278,7]
[426295252,1782251451000,-151.0,0.00027813,2]
[426295255,1782251451000,-953.76,0.00027824,2]
[426295254,1782251451000,-225.92,0.00027814,2]
[426295240,1782251451000,-153.1738696,0.00027758,2]
[426295262,1782251451000,-194.72792766,0.00027866,2]
[426295265,1782251451000,-181.08010149,0.00027866,2]
[426295277,1782251451000,-4276.65,0.00027872,2]
[426295276,1782251451000,-5732.07,0.00027872,2]
[426295266,1782251451000,-8882.6885148,0.00027866,2]
[426295253,1782251451000,-151.0,0.00027813,2]
[426295264,1782251451000,-3402.18189174,0.00027866,2]
[426295263,1782251451000,-157.72962379,0.00027866,2]
[426295261,1782251451000,-573.93725813,0.00027866,2]
[426295259,1782251451000,-954.98,0.00027855,7]
[426295256,1782251451000,-954.98,0.00027824,2]
[426295260,1782251451000,-518.5,0.00027866,2]
[426295258,1782251451000,-953.76,0.00027855,7]
[426295257,1782251451000,-151.27539405,0.00027854,21]
[426295344,1782251452000,-199.90002,0.00028071,2]
[426295346,1782251452000,-618.00218951,0.00028071,2]
[426295340,1782251452000,-159.8875281,0.00028071,2]
[426295338,1782251452000,-622.28811891,0.00028071,2]
[426295335,1782251452000,-664.23157933,0.00028071,2]
[426295336,1782251452000,-163.13347052,0.00028071,2]
[426295334,1782251452000,-954.98,0.00028068,30]
[426295337,1782251452000,-625.97859621,0.00028071,2]
[426295332,1782251452000,-476.883676,0.00028066,7]
[426295331,1782251452000,-260.67935044,0.00028052,2]
[426295341,1782251452000,-160.10957678,0.00028071,2]
[426295349,1782251452000,-616.86313626,0.00028071,2]
[426295348,1782251452000,-744.0487313,0.00028071,2]
[426295339,1782251452000,-457.75091129,0.00028071,2]
[426295343,1782251452000,-661.67306953,0.00028071,2]
[426295345,1782251452000,-726.08272435,0.00028071,2]
[426295350,1782251452000,-159.86961265,0.00028071,2]
[426295347,1782251452000,-623.42446119,0.00028071,2]
[426295360,1782251452000,-153.20578076,0.00028071,2]
[426295355,1782251452000,-716.29370335,0.00028071,2]
[426295362,1782251452000,-655.08568767,0.00028071,2]
[426295354,1782251452000,-601.62790578,0.00028071,2]
[426295352,1782251452000,-747.89103199,0.00028071,2]
[426295356,1782251452000,-600.69623406,0.00028071,2]
[426295358,1782251452000,-860.35860194,0.00028071,2]
[426295333,1782251452000,-953.76,0.00028068,30]
[426295342,1782251452000,-405.07360901,0.00028071,2]
[426295330,1782251452000,-954.98,0.00028038,7]
[426295316,1782251452000,-545.08,0.00028,2]
[426295326,1782251452000,-8169.18,0.00028033,7]
[426295301,1782251452000,-500.0,0.0002797,2]
[426295302,1782251452000,-953.76,0.00027977,30]
[426295305,1782251452000,-151.0,0.00027978,2]
[426295303,1782251452000,-954.98,0.00027977,30]
[426295308,1782251452000,-300.0,0.00028,20]
[426295307,1782251452000,-300.0,0.00028,7]
[426295306,1782251452000,-4817.636,0.00027998,2]
[426295310,1782251452000,-300.0,0.00028,7]
[426295304,1782251452000,-151.0,0.00027978,2]
[426295309,1782251452000,-169.58806504,0.00028,7]
[426295311,1782251452000,-15239.35068509,0.00028,2]
[426295312,1782251452000,-600.0,0.00028,2]
[426295313,1782251452000,-43198.09467899,0.00028,2]
[426295314,1782251452000,-165.0,0.00028,30]
[426295315,1782251452000,-200.0,0.00028,10]
[426295317,1782251452000,-953.76,0.00028007,2]
[426295321,1782251452000,-151.0,0.00028033,2]
[426295322,1782251452000,-5732.07,0.00028033,30]
[426295323,1782251452000,-4276.65,0.00028033,30]
[426295318,1782251452000,-954.98,0.00028007,2]
[426295320,1782251452000,-151.0,0.00028033,2]
[426295353,1782251452000,-303.0852517,0.00028071,2]
[426295324,1782251452000,-5080.57,0.00028033,30]
[426295319,1782251452000,-151.27539405,0.00028024,22]
[426295325,1782251452000,-5731.08,0.00028033,30]
[426295327,1782251452000,-4277.6,0.00028033,30]
[426295329,1782251452000,-953.76,0.00028038,7]
[426295328,1782251452000,-5078.46,0.00028033,30]
[426295351,1782251452000,-815.37947316,0.00028071,2]
[426295398,1782251452000,-802.94719094,0.0002809,2]
[426295363,1782251452000,-799.99814574,0.00028071,2]
[426295392,1782251452000,-686.21656706,0.0002809,2]
[426295394,1782251452000,-641.95968188,0.0002809,2]
[426295393,1782251452000,-695.78035324,0.0002809,2]
[426295399,1782251452000,-797.31399578,0.0002809,2]
[426295395,1782251452000,-229.16959365,0.0002809,2]
[426295397,1782251452000,-419.139914,0.0002809,2]
[426295396,1782251452000,-151.03262562,0.0002809,2]
[426295400,1782251452000,-715.80970525,0.0002809,2]
[426295403,1782251452000,-665.44097023,0.0002809,2]
[426295402,1782251452000,-548.43116106,0.0002809,2]
[426295412,1782251452000,-538.86663967,0.0002809,2]
[426295409,1782251452000,-156.04383365,0.0002809,2]
[426295406,1782251452000,-645.66061793,0.0002809,2]
[426295408,1782251452000,-482.56772497,0.0002809,2]
[426295407,1782251452000,-331.04645617,0.0002809,2]
[426295405,1782251452000,-468.14350315,0.0002809,2]
[426295411,1782251452000,-386.2221766,0.0002809,2]
[426295404,1782251452000,-163.91760907,0.0002809,2]
[426295410,1782251452000,-462.66951813,0.0002809,2]
[426295414,1782251452000,-423.12244562,0.0002809,2]
[426295416,1782251452000,-716.85683202,0.0002809,2]
[426295417,1782251452000,-888.11814817,0.0002809,2]
[426295419,1782251452000,-519.29342353,0.0002809,2]
[426295420,1782251452000,-642.03677803,0.0002809,2]
[426295418,1782251452000,-424.917711,0.0002809,2]
[426295415,1782251452000,-322.50039551,0.0002809,2]
[426295359,1782251452000,-709.7917658,0.00028071,2]
[426295401,1782251452000,-631.11805957,0.0002809,2]
[426295390,1782251452000,-212.4588555,0.0002809,2]
[426295413,1782251452000,-1342.01561043,0.0002809,2]
[426295389,1782251452000,-689.96649363,0.0002809,2]
[426295391,1782251452000,-259.64671177,0.0002809,2]
[426295361,1782251452000,-160.38902949,0.00028071,2]
[426295376,1782251452000,-783.45541352,0.00028082,2]
[426295365,1782251452000,-767.55815255,0.00028071,2]
[426295364,1782251452000,-457.91761687,0.00028071,2]
[426295375,1782251452000,-340.93825274,0.00028071,2]
[426295366,1782251452000,-770.05766793,0.00028071,2]
[426295357,1782251452000,-823.33477441,0.00028071,2]
[426295367,1782251452000,-873.42387296,0.00028071,2]
[426295371,1782251452000,-679.70482235,0.00028071,2]
[426295368,1782251452000,-632.68470325,0.00028071,2]
[426295369,1782251452000,-778.94386586,0.00028071,2]
[426295372,1782251452000,-166.44261997,0.00028071,2]
[426295370,1782251452000,-790.0651982,0.00028071,2]
[426295374,1782251452000,-743.97896239,0.00028071,2]
[426295373,1782251452000,-787.66778453,0.00028071,2]
[426295380,1782251452000,-702.75837858,0.00028083,2]
[426295384,1782251452000,-799.98164506,0.00028083,2]
[426295378,1782251452000,-162.93762488,0.00028082,2]
[426295383,1782251452000,-491.6979215,0.00028083,2]
[426295388,1782251452000,-211.56122281,0.0002809,2]
[426295386,1782251452000,-612.49729647,0.0002809,2]
[426295382,1782251452000,-627.7444442,0.00028083,2]
[426295381,1782251452000,-553.16284611,0.00028083,2]
[426295385,1782251452000,-173.11501557,0.00028083,2]
[426295379,1782251452000,-674.01595197,0.00028082,2]
[426295377,1782251452000,-714.187824,0.00028082,2]
[426295387,1782251452000,-647.48024265,0.0002809,2]
[426295441,1782251453000,-5080.57,0.00028194,7]
[426295438,1782251453000,-5727.97,0.00028194,7]
[426295440,1782251453000,-4276.65,0.00028194,7]
[426295445,1782251453000,-300.0,0.000282,20]
[426295444,1782251453000,-5078.46,0.00028194,7]
[426295442,1782251453000,-5731.08,0.00028194,7]
[426295452,1782251453000,-5000.0,0.0002826,7]
[426295447,1782251453000,-809.6451417,0.000282,2]
[426295449,1782251453000,-809.6451417,0.000282,2]
[426295450,1782251453000,-151.27539405,0.00028231,23]
[426295451,1782251453000,-5015.99959228,0.00028245,7]
[426295454,1782251453000,-33323.2708,0.000283,2]
[426295453,1782251453000,-1019.1,0.00028267,2]
[426295439,1782251453000,-5732.07,0.00028194,7]
[426295443,1782251453000,-4277.6,0.00028194,7]
[426295437,1782251453000,-500.0,0.00028156,60]
[426295424,1782251453000,-423.01053378,0.0002809,2]
[426295446,1782251453000,-2152.43,0.000282,7]
[426295421,1782251453000,-1147.38470369,0.0002809,2]
[426295423,1782251453000,-691.51431881,0.0002809,2]
[426295422,1782251453000,-623.4667289,0.0002809,2]
[426295448,1782251453000,-809.6451417,0.000282,2]
[426295427,1782251453000,-1227.79564144,0.0002809,2]
[426295426,1782251453000,-155.35417897,0.0002809,2]
[426295435,1782251453000,-955.09,0.0002813,7]
[426295434,1782251453000,-953.92,0.0002813,7]
[426295428,1782251453000,-462.90171877,0.0002809,2]
[426295425,1782251453000,-400.00879156,0.0002809,2]
[426295430,1782251453000,-953.76,0.00028099,2]
[426295431,1782251453000,-954.98,0.00028099,2]
[426295432,1782251453000,-1538.77,0.000281,7]
[426295433,1782251453000,-300.0,0.000281,10]
[426295429,1782251453000,-612.7785677,0.0002809,2]
[426295455,1782251453000,-752.18938995,0.000283,2]
[426295436,1782251453000,-3402.18189174,0.0002814,2]
[426295456,1782251453000,-500.0,0.00028302,2]
[426295473,1782251453000,-157.41989852,0.00028414,2]
[426295478,1782251453000,-1100.0,0.0002847,2]
[426295469,1782251453000,-157.72962379,0.00028414,2]
[426295474,1782251453000,-300.83240993,0.00028414,2]
[426295481,1782251453000,-196.63238598,0.00028488,2]
[426295480,1782251453000,-151.27539405,0.0002848,24]
[426295477,1782251453000,-151.0,0.00028414,2]
[426295488,1782251453000,-2508.16107959,0.000285,15]